Cogmind - Beta 16 @@@ ROGUE MODE // 2025.11.01 @ 11:28:29 Player: Phosphophyllite Result: Self-destructed Performance ------------- Evolutions (2) 1000 Regions Visited (6) 1200 Robots Destroyed (75) 375 Value Destroyed (2129) 2129 Prototype IDs (26) 520 Alien Tech Used (0) 0 Bonus (333) 333 TOTAL SCORE: 5557 Bonus ------- Follower Combat Kills 33 Aligned with FarCom 300 Cogmind --------- Core Integrity 470/550 Matter 216/300 Energy 150/150 System Corruption 0% Temperature Cool (36) Movement Treading (145) Location -8/Materials Parts ------- > --- POWER (1) -------- Light Angular Momentum Engine > --- PROPULSION (3) --- Advanced Treads Advanced Treads Advanced Treads > --- UTILITY (4) ------ High-capacity Storage Unit Light Armor Plating Hacking Suite PSU Rigger > --- WEAPON (3) ------- Improved Assault Rifle Improved Assault Rifle Enhanced Autogun > --- INVENTORY (20) --- Ion Engine Ion Engine Light Ion Engine Light Nuclear Core Armored Treads Advanced Treads Improved Heat Sink Medium Storage Unit Structural Scanner Improved Signal Interpreter Hardlight Generator High-powered Tractor Beam Advanced Beam Rifle Advanced Beam Rifle Advanced Beam Cannon Ion Cannon Shotgun Improved Assault Rifle Rocket Launcher Plasma Cutter Peak State ------------ > --- POWER ------------ Light Angular Momentum Engine > --- PROPULSION ------- Advanced Treads Advanced Treads Advanced Treads > --- UTILITY ---------- High-capacity Storage Unit Light Armor Plating Hacking Suite PSU Rigger > --- WEAPON ----------- Advanced Beam Rifle Improved Assault Rifle Enhanced Autogun > --- INVENTORY -------- Ion Engine Ion Engine Light Ion Engine Armored Treads Advanced Treads Improved Heat Sink Medium Storage Unit Structural Scanner Improved Signal Interpreter Light Armor Plating Hardlight Generator High-powered Tractor Beam Advanced Beam Rifle Advanced Beam Cannon Ion Cannon Shotgun Improved Assault Rifle Improved Assault Rifle Rocket Launcher Plasma Cutter [Rating: 42] Favorites ----------- Power Ion Engine Engine Ion Engine Power Core Light Nuclear Core Propulsion Advanced Treads Treads Advanced Treads Utility Light Armor Plating Device Seismic Detector Storage Medium Storage Unit Hackware Hacking Suite Protection Light Armor Plating Weapon Improved Assault Rifle Energy Gun Advanced Beam Rifle Energy Cannon Ion Cannon Ballistic Gun Improved Assault Rifle Ballistic Cannon Light Cannon Launcher Rocket Launcher Build | -11 -10 -9 -9 -9 -8 -8 ------- Run | Yrd Mat Mat Min Exi Min Mat Slots Evolved 4 | . . 2 . . . 2 Power . | . . . . . . . Propulsion 1 | . . . . . . 1 Utility 2 | . . 1 . . . 1 Weapon 1 | . . 1 . . . . Parts Attached 40 | 7 5 15 . 2 . 11 Power 6 | 1 1 2 . . . 2 Engine 5 | 1 . 2 . . . 2 Core 1 | . 1 . . . . . Reactor . | . . . . . . . Propulsion 9 | 2 1 5 . . . 1 Treads 9 | 2 1 5 . . . 1 Leg . | . . . . . . . Wheel . | . . . . . . . Hover . | . . . . . . . Flight . | . . . . . . . Utility 9 | 2 1 1 . 2 . 3 Device 3 | 1 . . . 1 . 1 Storage 3 | 1 1 . . 1 . . Processor . | . . . . . . . Hackware 1 | . . . . . . 1 Protection 2 | . . 1 . . . 1 Artifact . | . . . . . . . Weapon 16 | 2 2 7 . . . 5 Energy Gun 2 | 1 . . . . . 1 Energy Cannon 1 | . . . . . . 1 Ballistic Gun 10 | 1 1 6 . . . 2 Ballistic Cannon 1 | . 1 . . . . . Launcher 2 | . . 1 . . . 1 Special Weapon . | . . . . . . . Impact Weapon . | . . . . . . . Slashing Weapon . | . . . . . . . Piercing Weapon . | . . . . . . . Special Melee Weapon . | . . . . . . . Unidentified Prototypes 3 | . . 1 . . . 2 Corrupted Parts 1 | 1 . . . . . . System Corruption 1 | 1 . . . . . . Parts Lost 2 | . . 1 . . . 1 Power . | . . . . . . . Propulsion . | . . . . . . . Utility 1 | . . . . . . 1 Weapon 1 | . . 1 . . . . Highest Loss Streak 1 | . . 1 . . . 1 To Critical Strikes . | . . . . . . . Average Backups 11 | 3 8 9 9 9 10 15 Power 1 | . 1 1 1 1 1 2 Propulsion 2 | 2 2 2 2 2 2 1 Utility 3 | . 2 2 2 3 4 5 Weapon 3 | . 2 3 3 3 3 5 Tool/Special . | . . . . . . . Unused Backups 26 | . 8 4 1 . . 13 Power 4 | . . 1 . . . 3 Propulsion 8 | . 4 2 . . . 2 Utility 7 | . 2 . 1 . . 4 Weapon 6 | . 2 1 . . . 3 Tool/Special 1 | . . . . . . 1 Average Slot Usage (%) 98 | . 100 95 100 100 100 99 Engine 8 | . 3 8 11 11 11 9 Core 1 | . 10 2 . . . . Treads 24 | . 28 22 22 22 22 27 Device 10 | . 14 11 11 11 11 9 Storage 10 | . 14 11 11 11 11 9 Hackware 2 | . . . . . . 8 Protection 8 | . . 7 11 11 11 9 Energy Gun 1 | . 1 . . . . 4 Ballistic Gun 26 | . 14 30 33 33 33 21 Ballistic Cannon 2 | . 12 2 . . . . Peak Build Rating 42 | 7 10 20 20 21 21 42 Average Rating 20 | 5 9 13 19 20 21 32 On Entrance 14 | . 7 10 20 20 21 21 Avg Prop Armor Cover (%) . | . . . . . . . Naked Turns . | . . . . . . . Heaviest Build 63 | 13 21 28 28 28 28 63 Greatest Support 66 | 40 40 44 44 44 44 66 Greatest Overweight (x) . | . . . . . . . Average Overweight (x) . | . . . . . . . Largest Inventory Capacity 20 | 8 10 10 10 20 10 20 Average Capacity 12 | 7 8 10 10 10 10 19 Most Carried 20 | 7 10 10 10 10 10 20 Average Carried 11 | 3 8 9 9 9 10 15 Final Capacity 20 | 8 10 10 10 10 10 20 Final Carried 20 | 7 10 10 10 10 10 20 Class Distribution -------------------- 33% | Tank 30% | Skirmisher 13% | Scavenger-Tank 9% | Mutant 7% | Scavenger-Mutant 6% | Scavenger-Gunner Dominant Class ---------------- Mutant | -10/Materials Scavenger-Tank | -9/Materials Tank | -9/Mines Tank | -9/Exiles Skirmisher | -8/Mines Skirmisher | -8/Materials Resources | -11 -10 -9 -9 -9 -8 -8 ----------- Run | Yrd Mat Mat Min Exi Min Mat Matter Collected 1789 | 150 437 651 50 . . 501 Remotely . | . . . . . . . Salvage Created 2303 | 87 441 895 113 . . 767 Parts 138 | 6 36 55 5 . . 36 Haulers Intercepted 3 | . 1 1 . . . 1 Recyclers Shooed 2 | . 1 1 . . . . Parts Field Recycled . | . . . . . . . Retrieved Matter . | . . . . . . . Parts Self-Destructed . | . . . . . . . Prevented . | . . . . . . . Parts Restored . | . . . . . . . Kills | -11 -10 -9 -9 -9 -8 -8 ------- Run | Yrd Mat Mat Min Exi Min Mat Combat Hostiles Destroyed 51 | . 10 20 4 . . 17 Guns 27 | . 5 14 1 . . 7 Cannons 7 | . 5 2 . . . . AOE 17 | . . 4 3 . . 10 Classes Destroyed 13 | 2 7 2 . . . 2 Worker 5 | . 2 2 . . . 1 Builder 3 | . 1 . . . . 2 Tunneler 2 | 2 . . . . . . Hauler 3 | . 1 1 . . . 1 Recycler 3 | 1 . 2 . . . . Mechanic 1 | . . . . . . 1 Operator 3 | . 2 1 . . . . Watcher 4 | . 2 1 . . . 1 Swarmer 6 | . 3 3 . . . . Grunt 37 | . 7 12 4 . . 14 Brawler 2 | . . 1 . . . 1 Sentry 5 | . . 4 . . . 1 Hunter 1 | . . . . . . 1 Best Kill Streak 6 | 3 6 6 4 . . 5 Combat Bots Only 5 | . 4 5 4 . . 5 Max Kills in Single Turn 4 | 1 1 4 2 . . 2 Gunslinging . | . . . . . . . Exploded 3 | . . 3 2 . . 2 Melee . | . . . . . . . Uniques/NPCs Destroyed . | . . . . . . . Combat | -11 -10 -9 -9 -9 -8 -8 -------- Run | Yrd Mat Mat Min Exi Min Mat Hostile Shots Fired 183 | . 36 71 4 . . 72 Missed 54 | . 10 28 . . . 16 Hits 129 | . 26 43 4 . . 56 Projectile 129 | . 26 43 4 . . 56 Critical Strikes 6 | . 2 . . . . 4 Damage Taken 1750 | 8 263 506 49 . . 924 Core 175 | . 37 32 26 . . 80 Absorbed by Shields . | . . . . . . . Regen/Repaired (Parts) 76 | . . . . . . 76 Core Remaining (%) 90 | 100 85 . . . 85 . Volleys Fired 143 | 3 38 48 3 . . 51 Largest 3 | 2 2 3 3 . . 3 Hottest 109 | 60 60 73 69 . . 109 Shots Fired 327 | 7 75 139 5 . . 101 Gun 253 | 7 39 119 3 . . 85 Cannon 54 | . 36 16 . . . 2 Launcher 20 | . . 4 2 . . 14 Special . | . . . . . . . Kinetic 279 | 3 73 135 3 . . 65 Thermal 22 | . . . . . . 22 Explosive 20 | . . 4 2 . . 14 Electromagnetic 6 | 4 2 . . . . . Robot Hit Streak 11 | 7 9 8 4 . . 11 Robot Miss Streak 4 | . 3 3 . . . 4 Penetration Max . | . . . . . . . Secondary Targets 2 | . . 1 . . . 1 Max Gunslinging Chain 1 | . . 1 . . . 1 Shots Hit Robots 190 | 7 45 77 2 . . 59 Core Hits 124 | 2 25 44 6 . . 47 Critical Kills 1 | . . 1 . . . . Critical Parts Destroyed 2 | . . . . . . 2 Critical Strikes 4 | . 1 1 . . . 2 Destroy 3 | . . 1 . . . 2 Blast 1 | . 1 . . . . . Melee Attacks . | . . . . . . . Impact . | . . . . . . . Slashing . | . . . . . . . Piercing . | . . . . . . . Sneak Attacks . | . . . . . . . Combat Hostiles . | . . . . . . . Follow-up Attacks . | . . . . . . . Damage Inflicted 4834 | 188 720 1610 215 . . 2101 Guns 2510 | 78 343 1090 18 . . 981 Cannons 511 | . 354 157 . . . . Explosions 1756 | 110 . 345 188 . . 1113 Melee . | . . . . . . . Ramming 57 | . 23 18 9 . . 7 Kinetic 2751 | 28 697 1247 18 . . 761 Thermal 330 | 110 . . . . . 220 Explosive 1646 | . . 345 188 . . 1113 Electromagnetic 50 | 50 . . . . . . Impact . | . . . . . . . Slashing . | . . . . . . . Piercing . | . . . . . . . Highest Corruption 1 | 1 1 . . . . . Average Corruption 1 | 1 1 . . . . . Corruption Purged . | . . . . . . . Corruption Blocked . | . . . . . . . Effects 4 | 1 3 . . . . . Message Errors 1 | . 1 . . . . . Matter Fused 1 | . 1 . . . . . Misfires 1 | 1 . . . . . . Weapon Failures 1 | . 1 . . . . . Overload Shots . | . . . . . . . Overflow Damage 33 | 16 . 17 . . . . Projectiles . | . . . . . . . Explosions 33 | 16 . 17 . . . . Melee . | . . . . . . . Knockbacks 10 | . 7 3 . . . . Impact 1 | . . 1 . . . . Kinetic 9 | . 7 2 . . . . Secondary . | . . . . . . . Self-Inflicted Damage 64 | 9 . 22 . . . 33 Shots 3 | 1 . 1 . . . 1 Rammed 13 | . 4 6 3 . . . Targets Rammed 16 | . 6 6 3 . . 1 Kicked . | . . . . . . . Crushed 3 | . 2 . . . . 1 Highest Temperature 339 | 14 32 54 9 . . 339 Average Temperature 48 | 13 14 15 4 . . 90 Received Heat Transfer 822 | . 108 174 27 . . 513 Siege Activations . | . . . . . . . Martial Activations . | . . . . . . . Shielding Activations . | . . . . . . . Robots Disrupted . | . . . . . . . Combat Hostiles . | . . . . . . . Robots Corrupted . | . . . . . . . Combat Hostiles . | . . . . . . . Parts Fried . | . . . . . . . Impact Corruptions . | . . . . . . . Robots Melted . | . . . . . . . Combat Hostiles . | . . . . . . . Parts Melted 2 | 1 . . . . . 1 Heat Transferred 557 | 150 . . . . . 407 Parts Sabotaged . | . . . . . . . Parts Stolen . | . . . . . . . Parts Stripped . | . . . . . . . Power Chain Reactions 2 | 2 . . . . . . Alert | -11 -10 -9 -9 -9 -8 -8 ------- Run | Yrd Mat Mat Min Exi Min Mat Maximum Alert Level 1 | . . 1 . . . 1 Low Security (%) 80 | 100 100 50 100 . 100 84 Level 1 19 | . . 49 . . . 15 Level 2 . | . . . . . . . Level 3 . | . . . . . . . Level 4 . | . . . . . . . Level 5 . | . . . . . . . High Security . | . . . . . . . Max Security . | . . . . . . . Peak Influence 300 | 10 145 281 182 . . 300 Initial 90 | . . 53 90 . . . Average 93 | 1 80 179 86 . . 52 Influence Increases 1676 | 15 364 610 102 . . 585 Destroy 0b10 Robot/C 1040 | . 200 400 80 . . 360 Destroy 0b10 Robot/NC 120 | 15 40 35 . . . 30 Destroy Leader 264 | . 56 114 10 . . 84 Allied During Kill 7 | . . . 5 . . 2 Successful Hack 35 | . 20 15 . . . . Disable Machine 60 | . 30 . . . . 30 Destroy Structure 120 | . 3 31 7 . . 79 Partial Spotted 15 | . . 15 . . . . Lose Combat Pursuer 15 | . 15 . . . . . Influence Decreases 1376 | 15 236 506 334 . . 285 Entered New Map 217 | . . 75 142 . . . Time Decay 1066 | 15 236 368 192 . . 255 Lost Part 20 | . . 10 . . . 10 Lost Ally 20 | . . . . . . 20 Purge Threat 53 | . . 53 . . . . Squads Dispatched 12 | . 2 5 2 . . 3 Investigation 3 | . . 2 . . . 1 Extermination . | . . . . . . . Reinforcement 8 | . 2 3 1 . . 2 Assault 1 | . . . 1 . . . Garrison . | . . . . . . . Intercept . | . . . . . . . Searches Triggered . | . . . . . . . Construction Impeded 3 | . . 1 1 . . 1 Haulers Reinforced . | . . . . . . . Active Scanning Responses . | . . . . . . . Cargo Convoy Interrupts . | . . . . . . . Stealth | -11 -10 -9 -9 -9 -8 -8 --------- Run | Yrd Mat Mat Min Exi Min Mat Distress Signals 5 | . 1 2 . . . 2 Communications Jammed . | . . . . . . . Distress Signals . | . . . . . . . Times Spotted 75 | . 19 24 5 . . 27 Peak Tracking Total 6 | . 5 6 4 . . 6 Tactical Retreats 1 | . 1 . . . . . Traps | -11 -10 -9 -9 -9 -8 -8 ------- Run | Yrd Mat Mat Min Exi Min Mat Traps Triggered 2 | . . 2 . . . . Indirectly . | . . . . . . . Trap Hack Attempts . | . . . . . . . Triggered . | . . . . . . . Disarmed . | . . . . . . . Reprogrammed . | . . . . . . . Reused . | . . . . . . . Traps Extracted . | . . . . . . . Installed . | . . . . . . . Triggered . | . . . . . . . Most Traps Carried 1 | . . . 1 1 . . Objects Rigged 1 | . . . . . . 1 Machines | -11 -10 -9 -9 -9 -8 -8 ---------- Run | Yrd Mat Mat Min Exi Min Mat Machines Disabled 4 | . 2 . . . . 2 Max in Single Turn 1 | . 1 . . . . 1 Machines Repaired . | . . . . . . . Machines Dismantled . | . . . . . . . Machines Sabotaged . | . . . . . . . Overloaded Fab Kills . | . . . . . . . Hacking | -11 -10 -9 -9 -9 -8 -8 --------- Run | Yrd Mat Mat Min Exi Min Mat Machines Accessed 12 | . 2 3 . 4 . 3 Terminals 6 | . 2 3 . . . 1 Fabricators . | . . . . . . . Repair Stations 1 | . . . . . . 1 Recycling Units . | . . . . . . . Scanalyzers 1 | . . . . . . 1 Garrison Access . | . . . . . . . Total Hacks 47 | . 6 8 . 26 . 7 Successful 38 | . 3 6 . 26 . 3 Failed 9 | . 3 2 . . . 4 Catastrophic 2 | . 1 1 . . . . Database Lockouts . | . . . . . . . Manual 13 | . 5 5 . 1 . 2 Terminals 16 | . 6 8 . . . 2 Fabricators . | . . . . . . . Repair Stations 3 | . . . . . . 3 Recycling Units . | . . . . . . . Scanalyzers 2 | . . . . . . 2 Garrison Access . | . . . . . . . Terminal Hacks 30 | . 1 3 . 26 . . Record 25 | . . . . 25 . . Branch Access Points 2 | . 1 1 . . . . Unreport Threat 1 | . . 1 . . . . Registered Prototypes 1 | . . 1 . . . . Proto ID Catalog 1 | . . . . 1 . . Fabricator Hacks . | . . . . . . . Repair Station Hacks 2 | . . . . . . 2 Scan Component 1 | . . . . . . 1 Repair 1 | . . . . . . 1 Recycling Unit Hacks . | . . . . . . . Scanalyzer 1 | . . . . . . 1 Retrieve Study 1 | . . . . . . 1 Garrison Access Hacks . | . . . . . . . Unauthorized Hacks 5 | . 2 3 . . . . Terminals 5 | . 2 3 . . . . Botnet 3 | . 1 2 . . . . Operators 1 | . 1 . . . . . Skim 1 | . . 1 . . . . Fabricators . | . . . . . . . Repair Stations . | . . . . . . . Recycling Units . | . . . . . . . Scanalyzers . | . . . . . . . Garrison Access . | . . . . . . . Data Cores Recovered 1 | . 1 . . . . . Used . | . . . . . . . Hacking Detections 7 | . 2 2 . . . 3 Full Trace Events 2 | . . 1 . . . 1 Feedback Events . | . . . . . . . Feedback Blocked . | . . . . . . . Robot Schematics Acquired . | . . . . . . . Robots Built . | . . . . . . . Authchips . | . . . . . . . Time . | . . . . . . . Total Robot Build Rating . | . . . . . . . Part Schematics Acquired . | . . . . . . . Parts Built . | . . . . . . . Authchips . | . . . . . . . Time . | . . . . . . . Total Part Build Rating . | . . . . . . . Part Studies Acquired 1 | . . . . . . 1 Parts Repaired 1 | . . . . . . 1 Time 26 | . . . . . . 26 Parts Recycled . | . . . . . . . Recycled Matter . | . . . . . . . Retrieved Matter . | . . . . . . . Retrieved Components . | . . . . . . . Parts Scanalyzed . | . . . . . . . Part Schematics Acquired . | . . . . . . . Parts Damaged . | . . . . . . . Bothacking | -11 -10 -9 -9 -9 -8 -8 ------------ Run | Yrd Mat Mat Min Exi Min Mat Used RIF Installer . | . . . . . . . Robots Hacked . | . . . . . . . Non-combat . | . . . . . . . Combat . | . . . . . . . Robot Hacks Applied . | . . . . . . . Relay Couplers Released . | . . . . . . . Fabnet Peak Effective % . | . . . . . . . Robots Rewired . | . . . . . . . Allies Hacked . | . . . . . . . Hacks Repelled . | . . . . . . . Allies | -11 -10 -9 -9 -9 -8 -8 -------- Run | Yrd Mat Mat Min Exi Min Mat Total Allies 1 | . . . 1 . . . Largest Group 1 | . . . 1 1 1 1 Highest-Rated Group 31 | . . . 31 31 31 31 Highest-Rated Ally 31 | . . . 31 31 31 31 Total Orders . | . . . . . . . Ally Attacks 11 | . . . 5 . . 6 Total Damage 170 | . . . 62 . . 108 Kills 1 | . . . . . . 1 Allies Corrupted . | . . . . . . . Allies Melted . | . . . . . . . Intel | -11 -10 -9 -9 -9 -8 -8 ------- Run | Yrd Mat Mat Min Exi Min Mat Active Infowar (turns) 3644 | 23 529 959 417 894 153 669 Structural 909 | . . . . 87 153 669 Seismic 2735 | 23 529 959 417 807 . . Robot Analysis Total . | . . . . . . . Derelict Logs Recovered 1 | . . . 1 . . . Drone Launches . | . . . . . . . Drone Recoveries . | . . . . . . . Exploration | -11 -10 -9 -9 -9 -8 -8 ------------- Run | Yrd Mat Mat Min Exi Min Mat Turns Passed 4228 | 120 529 959 417 897 153 1153 Spaces Moved 2336 | 55 235 478 273 614 106 575 Core 5 | 5 . . . . . . Treads 2331 | 50 235 478 273 614 106 575 Legs . | . . . . . . . Wheels . | . . . . . . . Hover . | . . . . . . . Flight . | . . . . . . . Fastest Speed 50 | 50 160 145 145 145 145 145 Average Speed 149 | 150 160 158 145 145 145 145 Slowest Speed 160 | 160 160 160 145 145 145 145 Overloaded Moves . | . . . . . . . Propulsion Burnouts . | . . . . . . . Robots Hopped . | . . . . . . . Potential Cave-ins . | . . . . . . . Cave-ins Triggered . | . . . . . . . Exploration Rate (%) 45 | 4 42 39 77 91 24 38 Regions Visited 6 Branch Regions 3 Pre-discovered Areas . | . . . . . . . Known Exits Taken 1 | . . 1 . . . . Unknown Exits Taken 5 | 1 1 . 1 1 1 . Scrap Searched 3 | . . . 3 . . . Spaces Dug . | . . . . . . . Terrain Destroyed 143 | 7 . 28 8 . . 100 Melee . | . . . . . . . Projectile . | . . . . . . . AOE 143 | 7 . 28 8 . . 100 Terrain Rammed . | . . . . . . . Walls Destroyed . | . . . . . . . Machines Disabled . | . . . . . . . Actions | -11 -10 -9 -9 -9 -8 -8 --------- Run | Yrd Mat Mat Min Exi Min Mat Total 2809 | 83 316 579 290 622 105 814 Wait 191 | 12 10 10 4 . . 155 Move 2330 | 54 234 477 272 613 105 575 Hop . | . . . . . . . Pick Up 42 | 7 11 7 3 2 . 12 Fast Attach 10 | 7 . 2 . 1 . . Attach 5 | . . 2 . . . 3 Detach . | . . . . . . . Swap 38 | . 5 14 2 2 . 15 Drop 33 | . 12 13 3 4 . 1 Fire 143 | 3 38 48 3 . . 51 Melee . | . . . . . . . Ram . | . . . . . . . Kick . | . . . . . . . Crush 16 | . 6 6 3 . . 1 Escape Stasis . | . . . . . . . Rewire . | . . . . . . . Trap 1 | . . . . . . 1 Miscellaneous . | . . . . . . . Route ------- -11/Scrapyard -10/Materials (discovered 3 exits: *Mat / Min x2) -9/Materials (discovered 3 exits: *Mat / *Min x2) -9/Mines (discovered 2 exits: *Mat / *Exi) -9/Exiles -8/Mines -8/Materials History --------- Turn | Location | Event 27 | -11/Scrapyard | Discovered new exit (range 15) 121 | -11/Scrapyard | Entered Materials 280 | -10/Materials | Discovered new exit (range 16) 321 | -10/Materials | Build established: Mutant 525 | -10/Materials | Identified exit to Mines 650 | -10/Materials | Entered another Materials area 650 | -9/Materials | Evolved 2 slots: Utility x1, Weapon x1 903 | -9/Materials | Identified exit to Mines 963 | -9/Materials | Discovered new exit (range 9) 1280 | -9/Materials | Build established: Scavenger-Tank 1609 | -9/Materials | Entered Mines 1610 | -9/Mines | Met a Derelict testing a Signal Generator 1693 | -9/Mines | Found a Scrap Suit stashed away for nefarious purposes 1727 | -9/Mines | Found a hidden stash of uninstalled traps 1801 | -9/Mines | Learned Materials trap positions 1835 | -9/Mines | Build established: Tank 1847 | -9/Mines | Discovered new exit (range 11) 1863 | -9/Mines | Received a Rocket Launcher from a helpful Derelict 2003 | -9/Mines | Deemed a non-threat by the Exiles lab entrance 2004 | -9/Mines | Discovered new exit (range 6) 2026 | -9/Mines | Entered Exiles 2026 | -9/Exiles | Accompanied by 1 ally 2060 | -9/Exiles | Met 8R-AWN 2086 | -9/Exiles | Met EX-HEX 2140 | -9/Exiles | Met EX-DEC 2219 | -9/Exiles | Met EX-BIN 2248 | -9/Exiles | Aligned with FarCom system 2250 | -9/Exiles | Given EX-Vault access code 2312 | -9/Exiles | Opened EX-Vault 2350 | -9/Exiles | Found PSU Rigger 2380 | -9/Exiles | Warned to stay clear of 0b10 Research branches 2593 | -9/Exiles | Visited The Gauntlet 2907 | -9/Exiles | Discovered new exit (range 14) 2923 | -9/Exiles | Left Exiles lab with PSU Rigger 2923 | -9/Exiles | Entered Mines 2923 | -8/Mines | Accompanied by 1 ally 3055 | -8/Mines | Discovered new exit (range 15) 3076 | -8/Mines | Entered Materials 3076 | -8/Materials | Accompanied by 1 ally 3076 | -8/Materials | Evolved 2 slots: Propulsion x1, Utility x1 3077 | -8/Materials | Loaded intel: 13 trap records 3220 | -8/Materials | Build established: Skirmisher 3986 | -8/Materials | Repaired Lgt. Armor Plating 4229 | -8/Materials | Self-destructed Last Messages --------------- 04096_ K-01 Serf collects debris. 04097_ Acquired 11 matter. 04102_ R-06 Scavenger collects Lgt. Ion Engine. 04107_ Acquired Lgt. Nuclear Core. 04110_ U-05 Engineer builds a Wall. 04114_ U-05 Engineer lays Concrete. 04131_ K-01 Serf collects debris. 04212_ Critical hit (Burn: +37). 04213_ Destroyed Welding Torch. 04213_ U-05 Engineer destroyed. 04215_ Critical hit (Burn: +37). 04215_ G-47 Trooper destroyed. 04216_ K-01 Serf cleans the Material Processor. 04220_ U-05 Engineer builds a Wall. 04220_ R-06 Scavenger collects Aluminum Leg. 04221_ The unstable cave ceiling collapses. 04221_ U-05 Engineer destroyed. 04224_ G-50 Soldier destroyed. 04224_ R-06 Scavenger sends out distress signal. 04228_ K-01 Serf collects debris. Map ----- +----------------------------------------------------+ | ###### ##????? ##???????? # % ^ | | + ##???????????????????# ##########+##### | | # ###???????????????????## ##??????????????? | | # ###???????????????????## ####### ????????? | | # ##????????????????????## ####### ????????? | | + ##????????????????????## ## # ????????? | | # ####### ??????????????## ## # ????????? | | # ########????????????? ## ## # ????????? | | # # ??? ##???????### ## # ????????? | | # # "?"## ##??####### # # ????????? | | ### # """## ##??####### + ##????????? | | ### # """## ##??## # # ????????? | | # # ## ##??## ####% #[ # ????????? | | # # """## ##??## #### # # ????????? | | # """## ##??## ######/######## ????????? | | # # """## ##??## # ##### ????????? | | ### # ## ###### # """ ##????????????? | | ### #####+##### ###### # """"" ##????????????? | | ### #### # """"" ##????????????? | | ### #### # """"" ##????????????? | | #### # """ ##????????????? | | ######+### ###+####### # ##????????????? | | ## ## ## # #tY ! # ????????????? | | ## """ ## ## # #k######### ????????????? | | ## """ ## ## """ # ######### ????????????? | | ## """ ## ##""""" #u@ ##????????????????????? | | ## ## ##""""" # ##????????????????????? | | ## = ## ##""""" + !u##????????????????????? | | ########## ## """ ##%|##????????????????????? | | ########## ## ##!%=# ???????????????????? | | ????????## ## ! # * + ???????????????????? | | ????????## ########### ???????????????????? | | ????????# #### ???????????????????? | | ????????? ?????????? ???????????????????? | | ???????????Y???????????] %r ???????????????????? | | ??????????????????????? # g #????????^?????????? | | ?????????????????????? * a gw]????????^?????????? | | ?????????????????????? ]????????^?????????? | | ???????????????????????# T ]=?????????????????? | | ???????????????????????## ???????????????????? | | ????????????????????????? ???????????????????? | | ????????????????????????? ???????????????????? | | ????????????????????????? ? ???????????????????? | | ????????????????????????? ?????????????????????? | | ?????????????????????????????????????????????????? | | ?????????????????????????????????????????????????? | | ?????????????????????????????????????????????????? | | ?????????????????????????????????????????????????? | | ?????????????????????????????????????????????????? | | ?????????????????????????????????????????????????? | +----------------------------------------------------+ Best States ------------- Heat Dissipation 31 Energy Generation 18 Energy Capacity 250 Matter Stores 300 Matter Capacity 300 Sight Range 16 Terrain Scan Density 10 Armor Coverage 150 Evasion (%) 40 Recoil Reduction 3 Offensive Hacking 10 Item Schematics ----------------- None Robot Schematics ------------------ None Fabricated ------------ Nothing Repaired ---------- Lgt. Armor Plating | 15% | -8/Materials Studied --------- Arm. Treads | -8/Materials | Hacked Alien Tech Used ----------------- None Achievements -------------- Construction Begets Destruction Ghost 'Em Challenges ------------ None Game ------ Seed StrikeGravityPit Manual? 0 Play Time 00:37:22 Cumulative 57.0 hours Start 2025.10.30 @ 19:12:07 End 2025.11.01 @ 11:28:29 Sessions 3 Manual Loads 0 Difficulty Rogue Special Mode None Game No. 60 Rogue 56 Adventurer 4 Explorer 0 Win Type - Total 1 Types 1/0/0/0/0/0/0/0/0/0 Lore% 38 Gallery% 37 Achievement% 24 Wizard Run 0 Options --------- Layout 1 ASCII 0 Keyboard 1 Movement Numpad Keybinds 0 Fullscreen 2 Font 32/SmallcapsGlow Map View 50x35 Zoom Use 0% Tactical HUD 1 Map Filters NONE Filters NONE Steam 1 RUN: 8ac56576-ad5a-41ef-87b1-00b5d7b9f305